bitfinex/quotes_BTCUSD_20241014
["timestamp","ask_amount","ask_price","bid_price","bid_amount"]
[1728883847605,0.001644,64037.0,64036.0,0.48326005]
[1728883847810,0.001644,64037.0,64036.0,0.20317551]
[1728883848012,0.002644,64037.0,64036.0,0.20817551]
[1728883848825,0.005644,64037.0,64036.0,0.20817551]
[1728883849220,0.002644,64037.0,64036.0,0.20817551]
[1728883849423,0.002644,64037.0,64036.0,0.20827561]
[1728883849636,0.002644,64037.0,64036.0,0.20927561]
[1728883849845,0.001644,64037.0,64036.0,0.20427561]
[1728883850286,0.002644,64037.0,64036.0,0.21127561]
[1728883850502,0.002644,64037.0,64036.0,0.20427561]
[1728883850717,0.002644,64037.0,64036.0,0.19318781]
[1728883850938,0.002644,64037.0,64036.0,0.02724484]
[1728883851151,0.00475964,64037.0,64036.0,0.01281535]
[1728883851580,0.00775964,64037.0,64036.0,0.01281535]
[1728883851786,0.00775964,64037.0,64036.0,0.00499058]
[1728883851998,0.00475964,64037.0,64036.0,0.00499058]
[1728883852209,0.00475964,64037.0,64036.0,0.0001001]
[1728883852428,0.00775964,64037.0,64036.0,0.0001001]
[1728883853913,0.01075964,64037.0,64036.0,0.0011001]
[1728883854365,0.016644,64037.0,64036.0,0.00699233]
[1728883854575,0.016644,64037.0,64036.0,0.16315433]
[1728883855023,0.016644,64037.0,64036.0,0.16305423]
[1728883855255,0.001644,64037.0,64036.0,0.16105423]
[1728883855466,0.008644,64037.0,64036.0,0.16205423]
[1728883856581,0.012644,64037.0,64036.0,0.16205423]
[1728883857040,0.03711262,64037.0,64036.0,0.16205423]
[1728883857263,0.03711262,64037.0,64036.0,0.157162]
[1728883857471,0.03711262,64037.0,64036.0,0.16205395]
[1728883860528,0.03711262,64037.0,64036.0,0.16988107]
[1728883860967,0.03711262,64037.0,64036.0,0.20419365]
[1728883861384,0.03711262,64037.0,64036.0,0.22289974]
[1728883861622,0.03011262,64037.0,64036.0,0.22189974]
[1728883861840,0.02611262,64037.0,64036.0,0.24077297]
[1728883862087,0.001644,64044.0,64043.0,0.156145]
[1728883862336,0.001644,64044.0,64043.0,0.17829789]
[1728883863685,0.001644,64044.0,64043.0,0.02215536]
[1728883863915,0.47019466,64044.0,64043.0,0.00889106]
[1728883864163,0.55219466,64044.0,64043.0,0.00889106]
[1728883864407,0.39605266,64044.0,64043.0,0.00889106]
[1728883864619,0.39605266,64044.0,64043.0,0.00789106]
[1728883864818,0.39605266,64044.0,64043.0,0.00489106]
[1728883865455,0.41005266,64044.0,64043.0,0.00489106]
[1728883865658,0.267344,64044.0,64043.0,0.00489106]
[1728883866297,0.27045964,64044.0,64043.0,0.00489106]
[1728883866941,0.2949271,64044.0,64043.0,0.00489106]
[1728883867149,0.60429311,64044.0,64043.0,0.00489106]
[1728883867386,0.58774413,64044.0,64037.0,0.0001001]
[1728883867601,0.312298,64042.0,64038.0,0.23387254]
[1728883867828,0.29886066,64040.0,64037.0,0.0001001]
[1728883868036,0.411357,64038.0,64037.0,0.0001001]
[1728883868252,0.61878611,64038.0,64037.0,0.0001001]
[1728883868468,0.156162,64036.0,64035.0,0.000822]
[1728883868693,0.76461351,64036.0,64035.0,0.000822]
[1728883868911,0.76149787,64036.0,64035.0,0.000822]
[1728883869120,0.78596916,64036.0,64035.0,0.000822]
[1728883869336,0.73976596,64036.0,64035.0,0.000822]
[1728883870648,0.74976596,64036.0,64035.0,0.000822]
[1728883870859,0.73976596,64036.0,64035.0,0.000822]
[1728883871355,0.81396792,64036.0,64035.0,0.000822]
[1728883872222,0.75376596,64036.0,64035.0,0.000822]
[1728883872723,0.85876596,64036.0,64035.0,0.000822]
[1728883873360,1.34476596,64036.0,64035.0,0.000822]
[1728883873781,1.35876596,64036.0,64035.0,0.000822]
[1728883873995,1.34829467,64036.0,64035.0,0.000822]
[1728883874227,1.33429467,64036.0,64035.0,0.000822]
[1728883874659,1.34829467,64036.0,64035.0,0.000822]
[1728883875624,1.38948769,64036.0,64035.0,0.000822]
[1728883876079,1.34329467,64036.0,64035.0,0.000822]
[1728883876763,1.38948658,64036.0,64035.0,0.000822]
[1728883877002,1.41395792,64036.0,64035.0,0.000822]
[1728883877697,1.43706234,64036.0,64035.0,0.000822]
[1728883877984,1.4139576,64036.0,64035.0,0.000822]
[1728883879164,1.41395502,64036.0,64035.0,0.000822]
[1728883881077,0.93818436,64036.0,64035.0,0.000822]
[1728883881312,0.55247134,64036.0,64035.0,0.156986]
[1728883882021,0.55247134,64036.0,64035.0,0.16187823]
[1728883882754,0.53847134,64036.0,64035.0,0.16187823]
[1728883883222,0.514,64036.0,64035.0,0.16187823]
[1728883883501,0.5,64036.0,64035.0,0.16970542]
[1728883883727,0.507,64036.0,64035.0,0.17914392]
[1728883883962,0.5,64036.0,64035.0,0.17914392]
[1728883884229,0.508,64036.0,64035.0,0.28163009]
[1728883884509,0.508,64036.0,64035.0,0.30134284]
[1728883884757,0.5,64036.0,64035.0,0.30034284]
[1728883885001,0.5,64036.0,64035.0,0.31084575]
[1728883885245,0.5,64036.0,64035.0,0.31284575]
[1728883885471,0.5,64036.0,64035.0,0.33171901]
[1728883885695,0.5,64036.0,64035.0,0.49094302]
[1728883885946,0.5,64036.0,64035.0,0.59794302]
[1728883886181,0.5,64036.0,64035.0,0.63666695]
[1728883886421,0.5,64036.0,64035.0,0.55880959]
[1728883886649,0.5,64036.0,64035.0,0.62189968]
[1728883887155,0.45109649,64036.0,64035.0,0.62189968]
[1728883887416,0.45209649,64036.0,64035.0,0.62289968]
[1728883887653,0.45109649,64036.0,64035.0,0.62089968]
[1728883887884,0.45209649,64036.0,64035.0,0.62189968]
[1728883888113,0.50199949,64036.0,64035.0,0.62289968]
[1728883888339,0.001,64036.0,64035.0,0.62189968]
[1728883888589,0.002,64036.0,64035.0,0.62289968]
[1728883889532,0.001,64036.0,64035.0,0.60303353]
[1728883889760,0.001,64036.0,64035.0,0.62189968]
[1728883889990,0.002,64036.0,64035.0,0.62289968]
[1728883890233,0.002,64036.0,64035.0,0.62287788]
[1728883890753,0.002,64036.0,64035.0,0.24355096]
[1728883890986,0.002,64036.0,64035.0,0.0249698]
[1728883891251,0.42055158,64036.0,64035.0,0.00771258]
[1728883891479,0.42055158,64036.0,64035.0,0.002822]
[1728883893076,0.46478975,64036.0,64035.0,0.000822]
[1728883893335,0.59923169,64036.0,64035.0,0.000822]
[1728883893564,0.59523169,64036.0,64035.0,0.000822]
[1728883893800,0.68769463,64036.0,64035.0,0.000822]
[1728883894032,0.66922906,64036.0,64035.0,0.000822]
[1728883894267,0.68322906,64036.0,64035.0,0.000822]
[1728883894717,0.59076612,64036.0,64035.0,0.000822]
[1728883894943,0.59073291,64036.0,64035.0,0.000822]
[1728883895607,0.42008601,64036.0,64035.0,0.000822]
[1728883896498,0.48941308,64036.0,64035.0,0.000822]
[1728883896744,0.59440784,64036.0,64035.0,0.000822]
[1728883896983,0.78814838,64036.0,64035.0,0.000822]
[1728883897438,1.28814838,64036.0,64035.0,0.000822]
[1728883898090,1.19568544,64036.0,64035.0,0.000822]
[1728883898308,1.31262135,64036.0,64035.0,0.000822]
[1728883898564,0.88839698,64036.0,64035.0,0.000822]
[1728883898811,0.71169698,64036.0,64035.0,0.000822]
[1728883900140,0.86785898,64036.0,64035.0,0.000822]
[1728883900362,0.97285898,64036.0,64035.0,0.000822]
[1728883900589,1.04945898,64036.0,64035.0,0.000822]
[1728883900804,0.156179,64029.0,64028.0,0.000822]
[1728883901015,0.32051865,64029.0,64028.0,0.000822]
[1728883901242,0.31740301,64029.0,64028.0,0.000822]
[1728883901460,0.34187713,64029.0,64028.0,0.000822]
[1728883902538,0.34887713,64029.0,64028.0,0.000822]
[1728883902758,0.35387713,64029.0,64028.0,0.000822]
[1728883903412,0.85387713,64029.0,64028.0,0.000822]
[1728883903959,0.82940301,64029.0,64028.0,0.000822]
[1728883905277,0.82240301,64029.0,64028.0,0.000822]
[1728883905718,0.83640301,64029.0,64028.0,0.000822]
[1728883906135,1.00040301,64029.0,64028.0,0.000822]
[1728883906341,1.00940301,64029.0,64028.0,0.000822]
[1728883906795,1.02318376,64029.0,64028.0,0.000822]
[1728883906999,1.04765796,64029.0,64028.0,0.000822]
[1728883907888,1.12715796,64029.0,64028.0,0.000822]
[1728883908745,1.11315796,64029.0,64028.0,0.000822]
[1728883909170,1.12715796,64029.0,64028.0,0.000822]
[1728883909385,1.11315796,64029.0,64028.0,0.000822]
[1728883910034,1.12715796,64029.0,64028.0,0.000822]
[1728883910249,1.14115796,64029.0,64028.0,0.000822]
[1728883911123,1.1873304,64029.0,64028.0,0.000822]
[1728883911373,1.18733312,64029.0,64028.0,0.000822]
[1728883913320,1.18897712,64029.0,64028.0,0.000822]
[1728883913988,1.16450292,64029.0,64028.0,0.000822]
[1728883916143,1.16445343,64029.0,64028.0,0.000822]
[1728883917026,1.18892836,64029.0,64028.0,0.000822]
[1728883917664,1.14280269,64029.0,64028.0,0.000822]
[1728883924099,1.11832776,64029.0,64028.0,0.000822]
[1728883926067,1.03882776,64029.0,64028.0,0.000822]
[1728883927127,1.06330182,64029.0,64028.0,0.000822]
[1728883929140,0.72934207,64029.0,64028.0,0.000822]
[1728883929424,0.72934207,64029.0,64028.0,0.00571517]
[1728883929665,0.88552107,64029.0,64028.0,0.00571517]
[1728883929900,0.72934207,64029.0,64028.0,0.00571517]
[1728883930598,0.88552107,64029.0,64028.0,0.00571507]
[1728883930826,0.72934207,64029.0,64028.0,0.00571507]
[1728883931452,0.88552107,64029.0,64028.0,0.00571507]
[1728883932075,0.72934207,64029.0,64028.0,0.00571507]
[1728883932291,0.88552107,64029.0,64028.0,0.00571507]
[1728883932540,0.72934207,64029.0,64028.0,0.00571507]
[1728883932967,0.88552107,64029.0,64028.0,0.00571507]
[1728883933199,0.72934207,64029.0,64028.0,0.00571507]
[1728883933825,0.93162584,64029.0,64028.0,0.000822]
[1728883934031,0.90715178,64029.0,64028.0,0.000822]
[1728883934694,0.93020416,64029.0,64028.0,0.000822]
[1728883934922,0.77402516,64029.0,64028.0,0.000822]
[1728883935679,0.543644,64029.0,64028.0,0.0057153]
[1728883935900,0.61297636,64029.0,64028.0,0.0057153]
[1728883936398,0.61297636,64029.0,64028.0,0.02300799]
[1728883936399,0.529644,64029.0,64028.0,0.02300799]
[1728883936647,0.67252927,64029.0,64028.0,0.02300799]
[1728883936877,0.529644,64029.0,64028.0,0.02300799]
[1728883937111,0.58508342,64029.0,64028.0,0.02300799]
[1728883937335,0.57108342,64029.0,64028.0,0.02300799]
[1728883937581,0.59508342,64029.0,64028.0,0.02300799]
[1728883937817,0.58108342,64029.0,64028.0,0.09900799]
[1728883938064,0.58108342,64029.0,64028.0,0.076822]
[1728883938309,0.58108342,64029.0,64028.0,0.09900495]
[1728883938310,0.57910321,64029.0,64028.0,0.09900495]
[1728883938534,0.59557419,64029.0,64028.0,0.09900495]
[1728883939787,0.61157419,64029.0,64028.0,0.09900495]
[1728883940456,0.54211498,64029.0,64028.0,0.2703177]
[1728883941436,0.53311498,64029.0,64028.0,0.4511177]
[1728883941664,0.52611498,64029.0,64028.0,0.45110328]
[1728883942818,0.53111498,64029.0,64028.0,0.45110328]
[1728883943036,0.53211498,64029.0,64028.0,0.47000484]
[1728883943280,0.52611498,64029.0,64028.0,0.45110328]
[1728883943739,0.52711498,64029.0,64028.0,0.45310328]
[1728883943975,0.502644,64029.0,64028.0,0.45310328]
[1728883952472,0.002644,64029.0,64028.0,0.45310328]
[1728883953330,0.002644,64029.0,64028.0,0.44817236]
[1728883953578,0.002644,64029.0,64028.0,0.45306432]
[1728883953998,0.002644,64029.0,64028.0,0.63516869]
[1728883954205,0.002644,64029.0,64028.0,0.74016869]
[1728883954420,0.001644,64037.0,64035.0,0.005]
[1728883954640,0.001644,64037.0,64036.0,0.77673495]
[1728883955353,0.001644,64037.0,64036.0,0.89973495]
[1728883956002,0.001644,64037.0,64036.0,0.89773495]
[1728883956267,0.001644,64037.0,64036.0,0.8694169]
[1728883956478,0.001644,64037.0,64036.0,0.90071467]
[1728883956708,0.002644,64037.0,64036.0,0.90171467]
[1728883956926,0.003644,64037.0,64036.0,0.84759467]
[1728883957149,0.002644,64037.0,64036.0,0.88847644]
[1728883957368,0.002644,64037.0,64036.0,0.55145243]
[1728883957591,0.003644,64037.0,64036.0,0.55045243]
[1728883957796,0.003644,64037.0,64036.0,0.53158895]
[1728883958042,0.003644,64037.0,64036.0,0.43158895]
[1728883958665,0.003644,64037.0,64036.0,0.43658895]
[1728883958882,0.003644,64037.0,64036.0,0.43158895]
[1728883959746,0.003644,64037.0,64036.0,0.35188895]
[1728883959987,0.003644,64037.0,64036.0,0.20918029]
[1728883960215,0.02811087,64037.0,64036.0,0.18430875]
[1728883960857,0.02711087,64037.0,64036.0,0.02414722]
[1728883961070,0.02711087,64037.0,64036.0,0.18030922]
[1728883961316,0.02711087,64037.0,64036.0,0.18430922]
[1728883961520,0.02711087,64037.0,64036.0,0.18030922]
[1728883961734,0.02711087,64037.0,64036.0,0.02214722]
[1728883961735,0.51068341,64037.0,64036.0,0.02214722]
[1728883961966,0.51068341,64037.0,64036.0,0.001]
[1728883961967,0.59419388,64037.0,64036.0,0.001]
[1728883962439,0.156173,64032.0,64028.0,0.000822]
[1728883962672,0.25771564,64031.0,64029.0,0.0048925]
[1728883962906,0.00311564,64030.0,64028.0,0.000822]
[1728883963155,0.00311564,64030.0,64029.0,0.00489256]
[1728883963654,0.02758686,64030.0,64029.0,0.00489256]
[1728883964161,0.39821219,64030.0,64029.0,0.00489256]
[1728883964428,0.48543267,64030.0,64028.0,0.000822]
[1728883964696,0.32051865,64029.0,64028.0,0.000822]
[1728883964968,0.31740301,64029.0,64028.0,0.000822]
[1728883965484,0.50330301,64029.0,64028.0,0.000822]
[1728883966002,0.51730301,64029.0,64028.0,0.000822]
[1728883966506,0.60330301,64029.0,64028.0,0.000822]
[1728883966757,0.61730301,64029.0,64028.0,0.000822]
[1728883967267,0.64177829,64029.0,64028.0,0.000822]
[1728883967498,0.65577829,64029.0,64028.0,0.000822]
[1728883967732,0.64177829,64029.0,64028.0,0.000822]
[1728883967975,0.65577829,64029.0,64028.0,0.000822]
[1728883968219,0.64177829,64029.0,64028.0,0.000822]
[1728883968474,0.65577829,64029.0,64028.0,0.000822]
[1728883971269,0.76527829,64029.0,64028.0,0.000822]
[1728883971779,1.02792529,64029.0,64028.0,0.000822]
[1728883972012,1.25127829,64029.0,64028.0,0.000822]
[1728883972266,1.55099626,64029.0,64028.0,0.000822]
[1728883972495,1.43561713,64029.0,64028.0,0.000822]
[1728883972937,1.43726113,64029.0,64028.0,0.000822]
[1728883973402,1.41426113,64029.0,64028.0,0.000822]
[1728883973832,1.40026113,64029.0,64028.0,0.000822]
[1728883974083,1.37578585,64029.0,64028.0,0.000822]
[1728883974297,1.4820454,64029.0,64028.0,0.000822]
[1728883974503,1.38978585,64029.0,64028.0,0.000822]
[1728883974970,1.21944701,64029.0,64028.0,0.000822]
[1728883975500,1.28863948,64029.0,64028.0,0.000822]
[1728883975729,1.3897134,64029.0,64028.0,0.000822]
[1728883976188,1.4819677,64029.0,64028.0,0.000822]
[1728883976416,1.28863036,64029.0,64028.0,0.000822]
[1728883977134,1.3131069,64029.0,64028.0,0.000822]
[1728883977818,1.5064308,64029.0,64028.0,0.000822]
[1728883978259,1.31311318,64029.0,64028.0,0.000822]
[1728883978697,1.24392355,64029.0,64028.0,0.000822]
[1728883979333,1.28505267,64029.0,64028.0,0.000822]
[1728883979551,1.13892355,64029.0,64028.0,0.000822]
[1728883980642,1.11092355,64029.0,64028.0,0.000822]
[1728883980860,1.18505362,64029.0,64028.0,0.000822]
[1728883981212,1.15705362,64029.0,64028.0,0.000822]
[1728883981448,1.22492355,64029.0,64028.0,0.000822]
[1728883981669,1.23892355,64029.0,64028.0,0.000822]
[1728883982103,1.22492355,64029.0,64028.0,0.000822]
[1728883982338,1.23892355,64029.0,64028.0,0.000822]
[1728883982832,1.22492355,64029.0,64028.0,0.000822]
[1728883983037,1.23892355,64029.0,64028.0,0.001822]
[1728883983913,1.21444701,64029.0,64028.0,0.001822]
[1728883985873,1.11444701,64029.0,64028.0,0.001822]
[1728883987206,1.13892251,64029.0,64028.0,0.001822]
[1728883988075,0.1390467,64004.0,64003.0,0.0168835]
[1728883988296,0.1390467,64004.0,64003.0,0.20697292]
[1728883989824,0.1400467,64004.0,64003.0,0.21197292]
[1728883990046,0.1400467,64004.0,64003.0,0.21497292]
[1728883990492,0.6400467,64004.0,64003.0,0.20329956]
[1728883990731,0.6400467,64004.0,64003.0,0.21501057]
[1728883990936,0.6400467,64004.0,64003.0,0.20101057]
[1728883991193,0.6390467,64004.0,64003.0,0.20101057]
[1728883991447,0.66452562,64004.0,64003.0,0.22314394]
[1728883992562,0.66352562,64004.0,64003.0,0.21914394]
[1728883992772,0.66352562,64004.0,64003.0,0.21614394]
[1728883992982,0.66352562,64004.0,64003.0,0.21814394]
[1728883993186,0.66352562,64004.0,64003.0,0.21914394]
[1728883993394,0.66352562,64004.0,64003.0,0.22311394]
[1728883993599,0.66352562,64004.0,64003.0,0.22111394]
[1728883994063,0.6390467,64004.0,63993.0,0.01890185]
[1728883994291,0.6390467,64004.0,64003.0,0.156242]
[1728883994560,0.6390467,64004.0,64001.0,0.156246]
[1728883994832,0.6390467,64004.0,64000.0,0.156249]
[1728883995079,0.6390467,64004.0,63998.0,0.312509]
[1728883995330,0.6390467,64004.0,64000.0,0.156248]
[1728883996043,0.6390467,64004.0,64003.0,0.001]
[1728883996251,0.6400467,64004.0,64002.0,0.156243]
[1728883996461,0.6400467,64004.0,63999.0,0.00978782]
[1728883996678,0.6400467,64004.0,64000.0,0.001]
[1728883996883,0.6390467,64004.0,64000.0,0.001]
[1728883997101,0.6400467,64004.0,64000.0,0.001]
[1728883997319,0.66452599,64004.0,63998.0,0.312507]
[1728883997539,0.66452599,64004.0,63999.0,0.00978776]
[1728883997754,0.66452599,64004.0,64003.0,0.000822]
[1728883997965,0.6400467,64004.0,64003.0,0.000822]
[1728883998620,0.6400467,64004.0,63978.0,0.000822]
[1728883998621,0.33230234,63983.0,63978.0,0.000822]
[1728883998833,0.002,63996.0,63993.0,0.156266]
[1728883999057,0.23387254,63994.0,63993.0,0.156266]
[1728883999480,0.23387254,63994.0,63988.0,0.45526366]
[1728883999481,1.242,63995.0,63990.0,0.156274]
[1728884000159,1.242,63995.0,63988.0,0.14270866]
[1728884000370,1.242,63995.0,63991.0,0.29897966]
[1728884000580,0.001,63994.0,63993.0,0.157267]
[1728884000792,1.242,63995.0,63993.0,0.003]
[1728884001479,1.26648174,63995.0,63994.0,0.156264]
[1728884001903,1.26648174,63995.0,63993.0,0.003]
[1728884002114,1.26748174,63995.0,63991.0,0.14270866]
[1728884002363,1.26648174,63995.0,63991.0,0.14270866]
[1728884002582,1.26748174,63995.0,63992.0,0.156267]
[1728884002819,1.26848174,63995.0,63994.0,0.001]
[1728884003032,1.26748174,63995.0,63994.0,0.001]
[1728884003242,1.26848174,63995.0,63994.0,0.001]
[1728884003453,1.27048174,63995.0,63993.0,0.003]
[1728884003680,0.002,63994.0,63988.0,0.14270866]
[1728884003888,1.245,63995.0,63991.0,0.001]
[1728884004138,1.246,63995.0,63994.0,0.003]
[1728884004350,1.244,63995.0,63994.0,0.01083121]
[1728884005147,1.243,63995.0,63994.0,0.01083121]
[1728884005291,1.242,63995.0,63994.0,0.00783121]
[1728884005721,1.244,63995.0,63994.0,0.00783121]
[1728884005931,1.245,63995.0,63994.0,0.03489476]
[1728884006379,1.245,63995.0,63994.0,0.03789476]
[1728884006380,1.246,63995.0,63994.0,0.03789476]
[1728884006601,1.246,63995.0,63994.0,0.02354489]
[1728884006799,1.4263,63995.0,63994.0,0.04572415]
[1728884007004,0.61556188,63979.0,63978.0,0.17603336]
[1728884007203,0.61556188,63979.0,63978.0,0.57084698]
[1728884008535,0.61556188,63979.0,63978.0,0.32813832]
[1728884009155,0.61656188,63979.0,63978.0,0.33113832]
[1728884009337,0.61756188,63979.0,63978.0,0.33113832]
[1728884010528,0.61756188,63979.0,63978.0,0.32134901]
[1728884013146,0.61756188,63979.0,63978.0,0.32126901]
[1728884015079,0.61756188,63979.0,63978.0,0.33105926]
[1728884015505,0.61756188,63979.0,63978.0,0.17475626]
[1728884015924,0.61756188,63979.0,63978.0,0.27099458]
[1728884016182,0.61756188,63979.0,63978.0,0.17475626]
[1728884016379,0.61756188,63979.0,63978.0,0.26120433]
[1728884016821,0.61756188,63979.0,63978.0,0.17475626]
[1728884017034,0.61756188,63979.0,63978.0,0.16496601]
[1728884017249,0.61756188,63979.0,63978.0,0.19760162]
[1728884017925,0.61756188,63979.0,63978.0,0.22101908]
[1728884018613,0.61556188,63979.0,63978.0,0.21333688]
[1728884018882,0.61656188,63979.0,63978.0,0.23675458]
[1728884019101,0.61756188,63979.0,63978.0,0.26274389]
[1728884019335,0.61556188,63979.0,63978.0,0.26274389]
[1728884019567,0.61556188,63979.0,63978.0,0.41904689]
[1728884019814,0.61656188,63979.0,63978.0,0.41904689]
[1728884020074,0.61656188,63979.0,63978.0,0.43781531]
[1728884020305,0.61656188,63979.0,63978.0,0.28151231]
[1728884020527,0.58131652,63979.0,63978.0,0.39562943]
[1728884020742,0.58131652,63979.0,63978.0,0.23932643]
[1728884020960,0.58231652,63979.0,63978.0,0.39562943]
[1728884021450,0.58231652,63979.0,63978.0,0.23932643]
[1728884021668,0.58231652,63979.0,63978.0,0.26274389]
[1728884021896,0.58231652,63979.0,63978.0,0.39562943]
[1728884022133,0.58231652,63979.0,63978.0,0.41904689]
[1728884022356,0.58231652,63979.0,63978.0,0.26274389]
[1728884023066,0.58231652,63979.0,63978.0,0.22762586]
[1728884023305,0.58231652,63979.0,63978.0,0.26276132]
[1728884023534,0.58131652,63979.0,63978.0,0.26276809]
[1728884023749,0.58131652,63979.0,63978.0,0.28154087]
[1728884024103,0.58231652,63979.0,63978.0,0.43784387]
[1728884024509,0.58131652,63979.0,63978.0,0.43784387]
[1728884024852,0.58231652,63979.0,63978.0,0.28154087]
[1728884025710,0.58231652,63979.0,63978.0,0.43784387]
[1728884026536,1.82331652,63979.0,63978.0,0.28154087]
[1728884026760,1.82231652,63979.0,63978.0,0.28154087]
[1728884027016,1.82231652,63979.0,63978.0,0.16196601]
[1728884027238,1.82231652,63979.0,63978.0,0.43790641]
[1728884027239,1.82331652,63979.0,63978.0,0.43790641]
[1728884027403,1.82431652,63979.0,63978.0,0.43790641]
[1728884027826,1.82431652,63979.0,63978.0,0.28160341]
[1728884030960,1.90251652,63979.0,63978.0,0.06649381]
[1728884031225,1.0902558,63975.0,63972.0,0.000822]
[1728884031515,0.2779,63974.0,63972.0,0.000822]
[1728884033764,0.2789,63974.0,63972.0,0.000822]
[1728884034245,0.077,63973.0,63972.0,0.000822]
[1728884035183,0.2743,63973.0,63972.0,0.000822]
[1728884036068,0.2753,63973.0,63972.0,0.000822]
[1728884036525,0.2763,63973.0,63972.0,0.000822]
[1728884036773,0.2753,63973.0,63972.0,0.000822]
[1728884037220,0.2763,63973.0,63972.0,0.000822]
[1728884038543,0.2753,63973.0,63972.0,0.000822]
[1728884038759,0.2763,63973.0,63972.0,0.000822]
[1728884039201,0.2753,63973.0,63972.0,0.000822]
[1728884039413,0.2763,63973.0,63972.0,0.000822]
[1728884039853,0.2753,63973.0,63972.0,0.000822]
[1728884040081,0.2763,63973.0,63972.0,0.000822]
[1728884040579,0.2773,63973.0,63972.0,0.000822]
[1728884040829,0.2773,63973.0,63970.0,0.000822]
[1728884040830,0.0805,63968.0,63962.0,0.01867352]
[1728884041046,1.2775898,63967.0,63963.0,0.18969002]
[1728884041269,1.2775898,63967.0,63964.0,0.09344216]
[1728884041486,1.2775898,63967.0,63965.0,0.05123704]
[1728884041707,1.30207958,63967.0,63965.0,0.07849776]
[1728884041931,1.11227958,63967.0,63966.0,0.09343332]
[1728884042154,1.0770274,63967.0,63966.0,0.06998828]
[1728884042368,1.0770274,63967.0,63966.0,0.09343332]
[1728884042583,1.0770274,63967.0,63966.0,0.06998828]
[1728884042795,1.0780274,63967.0,63966.0,0.09343332]
[1728884043025,1.0770274,63967.0,63966.0,0.06998828]
[1728884043257,1.0780274,63967.0,63966.0,0.11938347]
[1728884043476,1.0780274,63967.0,63966.0,0.09593843]
[1728884043701,1.0780274,63967.0,63966.0,0.109591]
[1728884043926,1.05353762,63967.0,63966.0,0.08614596]
[1728884044137,1.05453762,63967.0,63966.0,0.109591]
[1728884044420,1.05453762,63967.0,63966.0,0.08614596]
[1728884045544,1.05453762,63967.0,63966.0,0.01866726]
[1728884045783,1.05353762,63967.0,63966.0,0.06746736]
[1728884045999,1.05353762,63967.0,63966.0,0.06425185]
[1728884046219,1.05453762,63967.0,63966.0,0.06746466]
[1728884046465,1.05453762,63967.0,63966.0,0.08613104]
[1728884046679,1.05453762,63967.0,63966.0,0.06746466]
[1728884047130,1.05453762,63967.0,63966.0,0.08613104]
[1728884047369,1.07902698,63967.0,63966.0,0.08613104]
[1728884048259,1.31703762,63967.0,63966.0,0.06746466]
[1728884048517,1.31703762,63967.0,63966.0,0.04871415]
[1728884048758,1.31703762,63967.0,63966.0,0.03378169]
[1728884048988,1.31603762,63967.0,63966.0,0.04871117]
[1728884049177,1.31703762,63967.0,63966.0,0.03378169]
[1728884049433,1.31603762,63967.0,63966.0,0.04871135]
[1728884049650,1.31703762,63967.0,63966.0,0.03378169]
[1728884049861,1.31503762,63967.0,63966.0,0.04870948]
[1728884050296,1.31503762,63967.0,63961.0,0.0005]
[1728884050297,1.01875593,63964.0,63961.0,0.0005]
[1728884050523,1.01875593,63964.0,63962.0,0.03367308]
[1728884050765,1.01875593,63964.0,63963.0,0.03367308]
[1728884051212,1.01875593,63964.0,63963.0,0.19489709]
[1728884051450,1.01875593,63964.0,63963.0,0.23656347]
[1728884051693,1.27795593,63964.0,63963.0,0.21356347]
[1728884051904,1.27795593,63964.0,63963.0,0.19489709]
[1728884052093,1.27795593,63964.0,63963.0,0.21356347]
[1728884052352,1.27795593,63964.0,63963.0,0.19489663]
[1728884052578,1.27895593,63964.0,63963.0,0.19489663]
[1728884053235,1.27995593,63964.0,63963.0,0.19489663]
[1728884053475,1.27995593,63964.0,63963.0,0.19488248]
[1728884055302,1.27795593,63964.0,63963.0,0.19488248]
[1728884055559,1.27795593,63964.0,63963.0,0.21952564]
[1728884055827,1.27795593,63964.0,63963.0,0.19688248]
[1728884056055,1.27795593,63964.0,63963.0,0.21352564]
[1728884056299,1.27895593,63964.0,63963.0,0.20188248]
[1728884056512,1.27795593,63964.0,63963.0,0.21752564]
[1728884056745,1.27795593,63964.0,63963.0,0.21834864]
[1728884056974,1.27895593,63964.0,63963.0,0.22334864]
[1728884057172,1.27995593,63964.0,63963.0,0.22834864]
[1728884057449,1.27995593,63964.0,63963.0,0.22837103]
[1728884057879,1.27995593,63964.0,63963.0,0.22837496]
[1728884058525,1.01875593,63964.0,63963.0,0.23737496]
[1728884058746,1.02075593,63964.0,63963.0,0.34161328]
[1728884058967,1.02075593,63964.0,63963.0,0.24537496]
[1728884059363,1.01975593,63964.0,63963.0,0.24237496]
[1728884059610,1.01875593,63964.0,63963.0,0.23737496]
[1728884059819,1.02075593,63964.0,63963.0,0.24537496]
[1728884060291,1.02075593,63964.0,63963.0,0.24255105]
[1728884060495,0.98550168,63964.0,63963.0,0.40672532]
[1728884061362,0.98550168,63964.0,63963.0,0.42145116]
[1728884061572,0.98450168,63964.0,63963.0,0.41845116]
[1728884061782,0.98550168,63964.0,63963.0,0.40589022]
[1728884061992,0.98450168,63964.0,63963.0,0.40089022]
[1728884062233,0.98450168,63964.0,63963.0,0.40289022]
[1728884062453,0.98450168,63964.0,63963.0,0.44450123]
[1728884062669,0.98550168,63964.0,63963.0,0.44750123]
[1728884062919,0.98550168,63964.0,63963.0,0.29116123]
[1728884063171,0.98550168,63964.0,63963.0,0.44742044]
[1728884063414,0.98550168,63964.0,63963.0,0.44750123]
[1728884063667,0.98550168,63964.0,63963.0,0.43185702]
[1728884064601,0.98450168,63964.0,63963.0,0.42885702]
[1728884064866,0.98550168,63964.0,63963.0,0.43985702]
[1728884065090,0.98450168,63964.0,63963.0,0.43485702]
[1728884065317,0.98450168,63964.0,63963.0,0.39491191]
[1728884065542,0.98450168,63964.0,63963.0,0.4378643]
[1728884065765,0.98350168,63964.0,63963.0,0.4238643]
[1728884066020,0.98550168,63964.0,63963.0,0.4498643]
[1728884066268,0.001646,63973.0,63963.0,0.3096243]
[1728884066269,0.85247186,63972.0,63963.0,0.3096243]
[1728884066524,0.85247186,63972.0,63971.0,0.27555832]
[1728884066778,0.85247186,63972.0,63971.0,0.53852925]
[1728884067327,0.85247186,63972.0,63971.0,0.52297211]
[1728884067527,0.85247186,63972.0,63971.0,0.53852217]
[1728884067752,0.85247186,63972.0,63971.0,0.42673379]
[1728884068471,0.85347186,63972.0,63971.0,0.27041379]
[1728884068710,0.85447186,63972.0,63971.0,0.42673379]
[1728884068957,0.85511786,63972.0,63971.0,0.42673379]